[Event "Titled Tuesday Blitz February 15 Early 2022"]
[White "Bugayev, Vladimir"]
[Black "Bodnaruk, Anastasia"]
[WhiteFideId "30901480"]
[BlackFideId "4181751"]
[WhiteElo "2400"]
[BlackElo "2393"]
[Result "0-1"]
[Round "07"]
[TimeControl "180+1"]
[Date "2022.02.15"]
[WhiteClock "0:00:39"]
[BlackClock "0:00:15"]

1. e4 {[%clk 0:03:00]}  c5 {[%clk 0:02:59]} 2. Nc3 {[%clk 0:03:00]}  d6 {[%clk 0:02:59]} 3. f4 {[%clk 0:03:00]}  Nc6 {[%clk 0:02:56]} 4. Nf3 {[%clk 0:02:48]}  g6 {[%clk 0:02:55]} 5. Bc4 {[%clk 0:02:48]}  Bg7 {[%clk 0:02:53]} 6. O-O {[%clk 0:02:48]}  e6 {[%clk 0:02:50]} 7. d4 {[%clk 0:02:48]}  Nxd4 {[%clk 0:02:33]} 8. Be3 {[%clk 0:02:47]}  Nxf3+ {[%clk 0:02:25]} 9. Qxf3 {[%clk 0:02:48]}  a6 {[%clk 0:02:05]} 10. f5 {[%clk 0:02:45]}  Nf6 {[%clk 0:01:55]} 11. e5 {[%clk 0:02:23]}  dxe5 {[%clk 0:01:53]} 12. fxe6 {[%clk 0:02:23]}  fxe6 {[%clk 0:01:40]} 13. Bg5 {[%clk 0:02:18]}  Qd4+ {[%clk 0:01:11]} 14. Kh1 {[%clk 0:02:09]}  O-O {[%clk 0:01:06]} 15. Qe2 {[%clk 0:02:09]}  b5 {[%clk 0:00:57]} 16. Bd3 {[%clk 0:02:04]}  Bb7 {[%clk 0:00:48]} 17. Bxf6 {[%clk 0:01:43]}  Rxf6 {[%clk 0:00:43]} 18. Be4 {[%clk 0:01:35]}  Rxf1+ {[%clk 0:00:38]} 19. Rxf1 {[%clk 0:01:33]}  Bxe4 {[%clk 0:00:34]} 20. Nxe4 {[%clk 0:01:31]}  Qxb2 {[%clk 0:00:34]} 21. Nxc5 {[%clk 0:01:20]}  Qxa2 {[%clk 0:00:34]} 22. h3 {[%clk 0:01:02]}  Rc8 {[%clk 0:00:29]} 23. Qf2 {[%clk 0:00:49]}  Rf8 {[%clk 0:00:19]} 24. Qe2 {[%clk 0:00:49]}  Rxf1+ {[%clk 0:00:18]} 25. Qxf1 {[%clk 0:00:50]}  Qc4 {[%clk 0:00:19]} 26. Qf2 {[%clk 0:00:49]}  e4 {[%clk 0:00:16]} 27. Nd7 {[%clk 0:00:46]}  Qd4 {[%clk 0:00:14]} 28. Qxd4 {[%clk 0:00:38]}  Bxd4 {[%clk 0:00:14]} 29. g4 {[%clk 0:00:37]}  a5 {[%clk 0:00:13]} 30. Kg2 {[%clk 0:00:37]}  a4 {[%clk 0:00:14]} 31. Kf1 {[%clk 0:00:38]}  a3 {[%clk 0:00:14]} 32. Ke2 {[%clk 0:00:39]}  a2 {[%clk 0:00:15]} 0-1


[Site "https://www.chess.com"]

[Event "Titled Tuesday Blitz February 15 Early 2022"]
[White "Bures, Vit"]
[Black "Przybylski, Wojciech"]
[WhiteFideId "309052"]
[BlackFideId "1117599"]
[WhiteElo "2118"]
[BlackElo "2133"]
[Result "0-1"]
[Round "07"]
[TimeControl "180+1"]
[Date "2022.02.15"]
[WhiteClock "0:00:59"]
[BlackClock "0:00:34"]

1. d4 {[%clk 0:03:00]}  Nf6 {[%clk 0:02:43]} 2. c4 {[%clk 0:03:00]}  e6 {[%clk 0:02:43]} 3. Nc3 {[%clk 0:03:00]}  Bb4 {[%clk 0:02:42]} 4. e3 {[%clk 0:03:00]}  O-O {[%clk 0:02:42]} 5. Ne2 {[%clk 0:03:00]}  d5 {[%clk 0:02:41]} 6. a3 {[%clk 0:03:00]}  Bd6 {[%clk 0:02:41]} 7. Ng3 {[%clk 0:03:00]}  b6 {[%clk 0:02:38]} 8. cxd5 {[%clk 0:02:57]}  exd5 {[%clk 0:02:37]} 9. Bd3 {[%clk 0:02:51]}  Re8 {[%clk 0:02:37]} 10. O-O {[%clk 0:02:50]}  c5 {[%clk 0:02:27]} 11. dxc5 {[%clk 0:02:49]}  bxc5 {[%clk 0:02:27]} 12. Nh5 {[%clk 0:02:47]}  Nbd7 {[%clk 0:02:26]} 13. Bb5 {[%clk 0:01:49]}  Nxh5 {[%clk 0:00:42]} 14. Qxh5 {[%clk 0:01:50]}  Nf6 {[%clk 0:00:42]} 15. Qf3 {[%clk 0:01:32]}  Bg4 {[%clk 0:00:39]} 16. Bxe8 {[%clk 0:01:10]}  Qxe8 {[%clk 0:00:39]} 17. Qxg4 {[%clk 0:01:01]}  Nxg4 {[%clk 0:00:38]} 18. Nxd5 {[%clk 0:00:59]}  Qe5 {[%clk 0:00:35]} 19. Nf4 {[%clk 0:00:59]}  g5 {[%clk 0:00:35]} 20. h3 {[%clk 0:00:59]}  Nf6 {[%clk 0:00:34]} 0-1


[Site "https://www.chess.com"]

[Event "Titled Tuesday Blitz February 15 Early 2022"]
[White "Buscar, Michael"]
[Black "Viskelis, Darius"]
[WhiteFideId "2603616"]
[BlackFideId "12800830"]
[WhiteElo "2010"]
[BlackElo "1999"]
[Result "0-1"]
[Round "07"]
[TimeControl "180+1"]
[Date "2022.02.15"]
[WhiteClock "0:00:08"]
[BlackClock "0:00:15"]

1. e4 {[%clk 0:03:00]}  Nc6 {[%clk 0:02:57]} 2. Nf3 {[%clk 0:02:58]}  d6 {[%clk 0:02:56]} 3. d4 {[%clk 0:02:57]}  Bg4 {[%clk 0:02:56]} 4. Be2 {[%clk 0:02:56]}  Nf6 {[%clk 0:02:51]} 5. Nc3 {[%clk 0:02:53]}  e6 {[%clk 0:02:51]} 6. Be3 {[%clk 0:02:50]}  d5 {[%clk 0:02:51]} 7. e5 {[%clk 0:02:50]}  Ne4 {[%clk 0:02:50]} 8. h3 {[%clk 0:02:48]}  Bh5 {[%clk 0:02:40]} 9. O-O {[%clk 0:02:34]}  Be7 {[%clk 0:02:27]} 10. Nh2 {[%clk 0:02:26]}  Nxc3 {[%clk 0:02:14]} 11. bxc3 {[%clk 0:02:24]}  Bxe2 {[%clk 0:02:14]} 12. Qxe2 {[%clk 0:02:25]}  O-O {[%clk 0:02:12]} 13. f4 {[%clk 0:02:17]}  Na5 {[%clk 0:02:12]} 14. Rf3 {[%clk 0:02:17]}  f5 {[%clk 0:02:08]} 15. exf6 {[%clk 0:02:14]}  Bxf6 {[%clk 0:02:08]} 16. Raf1 {[%clk 0:02:13]}  Nc4 {[%clk 0:02:07]} 17. Bc1 {[%clk 0:02:14]}  Qd7 {[%clk 0:02:00]} 18. Ng4 {[%clk 0:02:12]}  Rae8 {[%clk 0:01:44]} 19. Ne5 {[%clk 0:01:57]}  Bxe5 {[%clk 0:01:43]} 20. fxe5 {[%clk 0:01:51]}  Rxf3 {[%clk 0:01:36]} 21. Qxf3 {[%clk 0:01:51]}  Qe7 {[%clk 0:01:33]} 22. Qg4 {[%clk 0:01:49]}  Rf8 {[%clk 0:01:28]} 23. Rxf8+ {[%clk 0:01:33]}  Kxf8 {[%clk 0:01:27]} 24. Qh5 {[%clk 0:01:30]}  Kg8 {[%clk 0:01:24]} 25. Bg5 {[%clk 0:01:27]}  Qf7 {[%clk 0:01:24]} 26. Qg4 {[%clk 0:01:22]}  Qg6 {[%clk 0:01:16]} 27. Qf4 {[%clk 0:00:57]}  Qxc2 {[%clk 0:01:06]} 28. Be7 {[%clk 0:00:51]}  Qf5 {[%clk 0:00:59]} 29. Qh4 {[%clk 0:00:34]}  Ne3 {[%clk 0:00:42]} 30. Kh2 {[%clk 0:00:32]}  Qe4 {[%clk 0:00:35]} 31. Qxe4 {[%clk 0:00:20]}  dxe4 {[%clk 0:00:34]} 32. Bd8 {[%clk 0:00:18]}  c6 {[%clk 0:00:33]} 33. Ba5 {[%clk 0:00:17]}  b6 {[%clk 0:00:29]} 34. Bb4 {[%clk 0:00:17]}  Nd5 {[%clk 0:00:29]} 35. Kg3 {[%clk 0:00:13]}  a5 {[%clk 0:00:29]} 36. Ba3 {[%clk 0:00:14]}  Nxc3 {[%clk 0:00:29]} 37. Kf4 {[%clk 0:00:14]}  Nxa2 {[%clk 0:00:28]} 38. Kxe4 {[%clk 0:00:14]}  Nb4 {[%clk 0:00:28]} 39. g4 {[%clk 0:00:13]}  Kf7 {[%clk 0:00:20]} 40. h4 {[%clk 0:00:13]}  g6 {[%clk 0:00:18]} 41. h5 {[%clk 0:00:12]}  gxh5 {[%clk 0:00:16]} 42. gxh5 {[%clk 0:00:13]}  Kg7 {[%clk 0:00:16]} 43. Bc1 {[%clk 0:00:12]}  a4 {[%clk 0:00:16]} 44. Bd2 {[%clk 0:00:11]}  Nc2 {[%clk 0:00:15]} 45. Bc1 {[%clk 0:00:10]}  a3 {[%clk 0:00:15]} 46. Kd3 {[%clk 0:00:09]}  a2 {[%clk 0:00:15]} 47. Bb2 {[%clk 0:00:09]}  a1=Q {[%clk 0:00:15]} 48. Bxa1 {[%clk 0:00:08]}  Nxa1 {[%clk 0:00:15]} 0-1


[Site "https://www.chess.com"]

[Event "Titled Tuesday Blitz February 15 Early 2022"]
[White "Demin, Vladimir"]
[Black "Senthil Maran K"]
[WhiteFideId "4167457"]
[BlackFideId "25035681"]
[WhiteElo "2489"]
[BlackElo "2194"]
[Result "1-0"]
[Round "07"]
[TimeControl "180+1"]
[Date "2022.02.15"]
[WhiteClock "0:00:03"]
[BlackClock "0:00:04"]

1. e4 {[%clk 0:03:00]}  c5 {[%clk 0:02:55]} 2. Nf3 {[%clk 0:03:00]}  g6 {[%clk 0:02:55]} 3. c3 {[%clk 0:03:00]}  Nf6 {[%clk 0:02:54]} 4. e5 {[%clk 0:03:00]}  Nd5 {[%clk 0:02:55]} 5. d4 {[%clk 0:03:01]}  cxd4 {[%clk 0:02:54]} 6. Qxd4 {[%clk 0:03:00]}  Nc7 {[%clk 0:02:51]} 7. Bc4 {[%clk 0:02:49]}  Bg7 {[%clk 0:02:45]} 8. Qf4 {[%clk 0:02:32]}  O-O {[%clk 0:02:39]} 9. h4 {[%clk 0:02:23]}  Ne6 {[%clk 0:02:37]} 10. Qg3 {[%clk 0:02:17]}  Nc6 {[%clk 0:02:33]} 11. h5 {[%clk 0:02:15]}  Qc7 {[%clk 0:01:33]} 12. Bxe6 {[%clk 0:02:11]}  fxe6 {[%clk 0:00:57]} 13. hxg6 {[%clk 0:02:02]}  Nxe5 {[%clk 0:00:56]} 14. gxh7+ {[%clk 0:00:45]}  Kh8 {[%clk 0:00:54]} 15. Bh6 {[%clk 0:00:41]}  Nxf3+ {[%clk 0:00:38]} 16. gxf3 {[%clk 0:00:41]}  Qxg3 {[%clk 0:00:28]} 17. fxg3 {[%clk 0:00:42]}  Bxh6 {[%clk 0:00:24]} 18. Rxh6 {[%clk 0:00:42]}  Rxf3 {[%clk 0:00:24]} 19. Nd2 {[%clk 0:00:35]}  Rf7 {[%clk 0:00:23]} 20. Ke2 {[%clk 0:00:27]}  Rxh7 {[%clk 0:00:23]} 21. Rg6 {[%clk 0:00:26]}  Rh2+ {[%clk 0:00:22]} 22. Kd3 {[%clk 0:00:25]}  Kh7 {[%clk 0:00:20]} 23. Rg4 {[%clk 0:00:23]}  d6 {[%clk 0:00:20]} 24. Rf1 {[%clk 0:00:24]}  e5 {[%clk 0:00:19]} 25. Rf7+ {[%clk 0:00:23]}  Kh6 {[%clk 0:00:19]} 26. Rh4+ {[%clk 0:00:18]}  Rxh4 {[%clk 0:00:19]} 27. gxh4 {[%clk 0:00:19]}  Kg6 {[%clk 0:00:10]} 28. Rxe7 {[%clk 0:00:18]}  Bf5+ {[%clk 0:00:10]} 29. Ke3 {[%clk 0:00:18]}  Rh8 {[%clk 0:00:10]} 30. Nf3 {[%clk 0:00:17]}  Kf6 {[%clk 0:00:09]} 31. Rxb7 {[%clk 0:00:16]}  Rg8 {[%clk 0:00:09]} 32. Ng5 {[%clk 0:00:15]}  Rh8 {[%clk 0:00:08]} 33. Nf3 {[%clk 0:00:10]}  e4 {[%clk 0:00:08]} 34. Nd4 {[%clk 0:00:09]}  Bg6 {[%clk 0:00:07]} 35. Rxa7 {[%clk 0:00:08]}  Rxh4 {[%clk 0:00:08]} 36. Ra6 {[%clk 0:00:07]}  Rh3+ {[%clk 0:00:08]} 37. Kf4 {[%clk 0:00:06]}  Rh4+ {[%clk 0:00:08]} 38. Kg3 {[%clk 0:00:06]}  Rh1 {[%clk 0:00:07]} 39. Rxd6+ {[%clk 0:00:06]}  Kg7 {[%clk 0:00:08]} 40. Kf4 {[%clk 0:00:05]}  Rf1+ {[%clk 0:00:07]} 41. Ke3 {[%clk 0:00:04]}  Re1+ {[%clk 0:00:07]} 42. Kf2 {[%clk 0:00:05]}  Rb1 {[%clk 0:00:07]} 43. Rb6 {[%clk 0:00:05]}  Kf7 {[%clk 0:00:05]} 44. a4 {[%clk 0:00:05]}  Ra1 {[%clk 0:00:05]} 45. Rb4 {[%clk 0:00:03]}  Rd1 {[%clk 0:00:05]} 46. a5 {[%clk 0:00:03]}  Rd2+ {[%clk 0:00:05]} 47. Ke3 {[%clk 0:00:03]}  Rd3+ {[%clk 0:00:06]} 48. Kf4 {[%clk 0:00:02]}  e3 {[%clk 0:00:05]} 49. Rb7+ {[%clk 0:00:03]}  Kf6 {[%clk 0:00:04]} 50. Rb6+ {[%clk 0:00:03]}  Kg7 {[%clk 0:00:05]} 51. a6 {[%clk 0:00:03]}  e2 {[%clk 0:00:01]} 52. Nxe2 {[%clk 0:00:03]}  Rd2 {[%clk 0:00:01]} 53. Nd4 {[%clk 0:00:03]}  Bf7 {[%clk 0:00:02]} 54. Rb7 {[%clk 0:00:02]}  Rf2+ {[%clk 0:00:03]} 55. Ke3 {[%clk 0:00:02]}  Rf1 {[%clk 0:00:03]} 56. a7 {[%clk 0:00:03]}  Ra1 {[%clk 0:00:03]} 57. Nc6 {[%clk 0:00:04]}  Kf6 {[%clk 0:00:03]} 58. Kd4 {[%clk 0:00:03]}  Bd5 {[%clk 0:00:04]} 59. Kxd5 {[%clk 0:00:03]}  Rd1+ {[%clk 0:00:04]} 60. Kc5 {[%clk 0:00:03]}  Rd7 {[%clk 0:00:04]} 61. Rxd7 {[%clk 0:00:03]} 1-0


[Site "https://www.chess.com"]

[Event "Titled Tuesday Blitz February 15 Early 2022"]
[White "Desideri, Ricardo Maruchi"]
[Black "Altucher, James"]
[WhiteFideId "2110440"]
[BlackFideId "30987458"]
[WhiteElo "1945"]
[BlackElo "2179"]
[Result "1/2-1/2"]
[Round "07"]
[TimeControl "180+1"]
[Date "2022.02.15"]
[WhiteClock "0:00:02"]
[BlackClock "0:00:08"]

1. e4 {[%clk 0:03:00]}  g6 {[%clk 0:03:00]} 2. d4 {[%clk 0:02:59]}  Bg7 {[%clk 0:03:01]} 3. c4 {[%clk 0:02:59]}  d6 {[%clk 0:03:01]} 4. Nc3 {[%clk 0:03:00]}  Nf6 {[%clk 0:03:02]} 5. f3 {[%clk 0:02:55]}  O-O {[%clk 0:03:02]} 6. Be3 {[%clk 0:02:53]}  c5 {[%clk 0:03:02]} 7. d5 {[%clk 0:02:52]}  e6 {[%clk 0:03:01]} 8. Nge2 {[%clk 0:02:46]}  exd5 {[%clk 0:03:00]} 9. cxd5 {[%clk 0:02:45]}  a6 {[%clk 0:02:57]} 10. Ng3 {[%clk 0:02:44]}  b5 {[%clk 0:02:57]} 11. a3 {[%clk 0:02:43]}  h5 {[%clk 0:02:56]} 12. Be2 {[%clk 0:02:33]}  h4 {[%clk 0:02:56]} 13. Nf1 {[%clk 0:02:30]}  Nbd7 {[%clk 0:02:44]} 14. Nd2 {[%clk 0:02:24]}  Ne5 {[%clk 0:02:42]} 15. O-O {[%clk 0:02:22]}  h3 {[%clk 0:02:40]} 16. g3 {[%clk 0:02:20]}  Rb8 {[%clk 0:02:10]} 17. b4 {[%clk 0:02:17]}  c4 {[%clk 0:02:07]} 18. Qc2 {[%clk 0:02:06]}  Nh5 {[%clk 0:01:59]} 19. f4 {[%clk 0:02:03]}  Ng4 {[%clk 0:01:58]} 20. Bxg4 {[%clk 0:01:53]}  Bxg4 {[%clk 0:01:58]} 21. Nf3 {[%clk 0:01:49]}  f5 {[%clk 0:01:49]} 22. Ng5 {[%clk 0:01:33]}  Qf6 {[%clk 0:01:30]} 23. Ne2 {[%clk 0:01:01]}  fxe4 {[%clk 0:01:29]} 24. Bd4 {[%clk 0:00:56]}  Qf5 {[%clk 0:01:22]} 25. Bxg7 {[%clk 0:00:52]}  Nxg7 {[%clk 0:01:22]} 26. Nd4 {[%clk 0:00:51]}  Qf6 {[%clk 0:01:14]} 27. Nc6 {[%clk 0:00:50]}  Rbe8 {[%clk 0:01:11]} 28. Nxe4 {[%clk 0:00:49]}  Qf5 {[%clk 0:01:01]} 29. Rae1 {[%clk 0:00:46]}  Qh5 {[%clk 0:00:40]} 30. Qd2 {[%clk 0:00:30]}  Nf5 {[%clk 0:00:33]} 31. Nf6+ {[%clk 0:00:28]}  Rxf6 {[%clk 0:00:32]} 32. Rxe8+ {[%clk 0:00:29]}  Kf7 {[%clk 0:00:32]} 33. Rfe1 {[%clk 0:00:23]}  Kg7 {[%clk 0:00:29]} 34. Qf2 {[%clk 0:00:19]}  Bf3 {[%clk 0:00:22]} 35. Qa7+ {[%clk 0:00:18]}  Rf7 {[%clk 0:00:19]} 36. Qb8 {[%clk 0:00:17]}  Bxd5 {[%clk 0:00:17]} 37. Rg8+ {[%clk 0:00:16]}  Kh6 {[%clk 0:00:16]} 38. Rh8+ {[%clk 0:00:15]}  Rh7 {[%clk 0:00:16]} 39. Qf8+ {[%clk 0:00:14]}  Ng7 {[%clk 0:00:15]} 40. Rxh7+ {[%clk 0:00:12]}  Kxh7 {[%clk 0:00:16]} 41. Re7 {[%clk 0:00:04]}  Qd1+ {[%clk 0:00:14]} 42. Kf2 {[%clk 0:00:04]}  Qd2+ {[%clk 0:00:14]} 43. Re2 {[%clk 0:00:03]}  Qd3 {[%clk 0:00:13]} 44. Re3 {[%clk 0:00:01]}  Qc2+ {[%clk 0:00:12]} 45. Re2 {[%clk 0:00:01]}  Qc3 {[%clk 0:00:11]} 46. Re3 {[%clk 0:00:01]}  Qd2+ {[%clk 0:00:11]} 47. Re2 {[%clk 0:00:01]}  Qd3 {[%clk 0:00:10]} 48. Re3 {[%clk 0:00:02]}  Qd2+ {[%clk 0:00:08]} 49. Re2 {[%clk 0:00:02]} 1/2-1/2


[Site "https://www.chess.com"]

[Event "Titled Tuesday Blitz February 15 Early 2022"]
[White "Dreev, Aleksey"]
[Black "Gaehwiler, Gabriel"]
[WhiteFideId "4100107"]
[BlackFideId "1314530"]
[WhiteElo "2636"]
[BlackElo "2383"]
[Result "1/2-1/2"]
[Round "07"]
[TimeControl "180+1"]
[Date "2022.02.15"]
[WhiteClock "0:00:08"]
[BlackClock "0:00:06"]

1. d4 {[%clk 0:02:55]}  Nf6 {[%clk 0:02:59]} 2. c4 {[%clk 0:02:54]}  g6 {[%clk 0:03:00]} 3. Nc3 {[%clk 0:02:54]}  Bg7 {[%clk 0:03:00]} 4. Nf3 {[%clk 0:02:53]}  O-O {[%clk 0:03:01]} 5. e3 {[%clk 0:02:53]}  b6 {[%clk 0:02:54]} 6. Be2 {[%clk 0:02:52]}  Bb7 {[%clk 0:02:54]} 7. O-O {[%clk 0:02:52]}  Ne4 {[%clk 0:02:52]} 8. Nd5 {[%clk 0:02:44]}  e6 {[%clk 0:02:47]} 9. Nf4 {[%clk 0:02:43]}  Nc6 {[%clk 0:02:47]} 10. Bd3 {[%clk 0:02:30]}  Ne7 {[%clk 0:02:45]} 11. Qc2 {[%clk 0:02:28]}  d5 {[%clk 0:02:38]} 12. b3 {[%clk 0:02:22]}  c5 {[%clk 0:02:23]} 13. Bb2 {[%clk 0:02:22]}  cxd4 {[%clk 0:02:21]} 14. exd4 {[%clk 0:02:19]}  Rc8 {[%clk 0:02:21]} 15. Qe2 {[%clk 0:02:18]}  Nf5 {[%clk 0:02:18]} 16. Rad1 {[%clk 0:02:15]}  Re8 {[%clk 0:02:00]} 17. Rfe1 {[%clk 0:02:04]}  Nfd6 {[%clk 0:01:37]} 18. Ne5 {[%clk 0:02:01]}  Qc7 {[%clk 0:01:32]} 19. Rc1 {[%clk 0:01:54]}  Qb8 {[%clk 0:01:28]} 20. Ba3 {[%clk 0:01:45]}  Red8 {[%clk 0:01:25]} 21. cxd5 {[%clk 0:01:44]}  exd5 {[%clk 0:01:24]} 22. Qf3 {[%clk 0:01:38]}  Nf5 {[%clk 0:01:21]} 23. Bb2 {[%clk 0:01:33]}  Nxd4 {[%clk 0:01:17]} 24. Bxd4 {[%clk 0:01:29]}  Bxe5 {[%clk 0:01:15]} 25. Rxc8 {[%clk 0:01:25]}  Rxc8 {[%clk 0:01:14]} 26. Bxe5 {[%clk 0:01:14]}  Qxe5 {[%clk 0:01:15]} 27. h4 {[%clk 0:01:04]}  Rc3 {[%clk 0:01:01]} 28. Ne2 {[%clk 0:00:58]}  Nd2 {[%clk 0:00:52]} 29. Qf4 {[%clk 0:00:42]}  Qxf4 {[%clk 0:00:50]} 30. Nxf4 {[%clk 0:00:42]}  Ne4 {[%clk 0:00:41]} 31. f3 {[%clk 0:00:30]}  Nc5 {[%clk 0:00:38]} 32. Bb5 {[%clk 0:00:28]}  a6 {[%clk 0:00:35]} 33. Re8+ {[%clk 0:00:26]}  Kg7 {[%clk 0:00:35]} 34. Bf1 {[%clk 0:00:27]}  d4 {[%clk 0:00:33]} 35. Rd8 {[%clk 0:00:26]}  d3 {[%clk 0:00:27]} 36. b4 {[%clk 0:00:24]}  Na4 {[%clk 0:00:23]} 37. Nxd3 {[%clk 0:00:19]}  Rc7 {[%clk 0:00:23]} 38. a3 {[%clk 0:00:18]}  Nc3 {[%clk 0:00:21]} 39. Nf4 {[%clk 0:00:18]}  Nb1 {[%clk 0:00:20]} 40. a4 {[%clk 0:00:17]}  Nc3 {[%clk 0:00:20]} 41. a5 {[%clk 0:00:18]}  bxa5 {[%clk 0:00:20]} 42. bxa5 {[%clk 0:00:19]}  Na4 {[%clk 0:00:18]} 43. h5 {[%clk 0:00:18]}  Kf6 {[%clk 0:00:17]} 44. h6 {[%clk 0:00:18]}  Kg5 {[%clk 0:00:17]} 45. Nd3 {[%clk 0:00:15]}  Kxh6 {[%clk 0:00:17]} 46. Ne5 {[%clk 0:00:15]}  Kg7 {[%clk 0:00:17]} 47. Nc4 {[%clk 0:00:15]}  Nc3 {[%clk 0:00:14]} 48. Nd6 {[%clk 0:00:15]}  Re7 {[%clk 0:00:10]} 49. Rb8 {[%clk 0:00:14]}  Bc6 {[%clk 0:00:08]} 50. Bxa6 {[%clk 0:00:14]}  Ra7 {[%clk 0:00:06]} 51. Bb7 {[%clk 0:00:14]}  Bxb7 {[%clk 0:00:04]} 52. Rxb7 {[%clk 0:00:15]}  Rxa5 {[%clk 0:00:04]} 53. Nxf7 {[%clk 0:00:13]}  Kf6 {[%clk 0:00:03]} 54. Nh6 {[%clk 0:00:13]}  Ra1+ {[%clk 0:00:03]} 55. Kh2 {[%clk 0:00:13]}  Kg5 {[%clk 0:00:04]} 56. Ng4 {[%clk 0:00:13]}  h5 {[%clk 0:00:04]} 57. Nf2 {[%clk 0:00:10]}  Ne2 {[%clk 0:00:02]} 58. Nh3+ {[%clk 0:00:10]}  Kf6 {[%clk 0:00:03]} 59. Rb6+ {[%clk 0:00:10]}  Kg7 {[%clk 0:00:03]} 60. Re6 {[%clk 0:00:10]}  Nd4 {[%clk 0:00:03]} 61. Rb6 {[%clk 0:00:09]}  Nf5 {[%clk 0:00:03]} 62. Nf4 {[%clk 0:00:09]}  Ne7 {[%clk 0:00:01]} 63. Rb7 {[%clk 0:00:09]}  Kf6 {[%clk 0:00:02]} 64. Rb6+ {[%clk 0:00:10]}  Kf7 {[%clk 0:00:02]} 65. Nd3 {[%clk 0:00:09]}  Ra5 {[%clk 0:00:02]} 66. f4 {[%clk 0:00:09]}  Rd5 {[%clk 0:00:02]} 67. Ne5+ {[%clk 0:00:09]}  Kg7 {[%clk 0:00:02]} 68. Re6 {[%clk 0:00:09]}  Nf5 {[%clk 0:00:01]} 69. Rxg6+ {[%clk 0:00:10]}  Kh7 {[%clk 0:00:02]} 70. Rg5 {[%clk 0:00:09]}  Ne3 {[%clk 0:00:03]} 71. Rxh5+ {[%clk 0:00:09]}  Kg7 {[%clk 0:00:04]} 72. Rg5+ {[%clk 0:00:10]}  Kf6 {[%clk 0:00:04]} 73. Ng4+ {[%clk 0:00:08]}  Nxg4+ {[%clk 0:00:04]} 74. Rxg4 {[%clk 0:00:08]}  Rh5+ {[%clk 0:00:04]} 75. Kg3 {[%clk 0:00:09]}  Ra5 {[%clk 0:00:05]} 76. Rh4 {[%clk 0:00:07]}  Ra2 {[%clk 0:00:05]} 77. Kg4 {[%clk 0:00:07]}  Rxg2+ {[%clk 0:00:05]} 78. Kf3 {[%clk 0:00:08]}  Ra2 {[%clk 0:00:06]} 79. Rh6+ {[%clk 0:00:08]}  Kf5 {[%clk 0:00:06]} 80. Rh5+ {[%clk 0:00:09]}  Kf6 {[%clk 0:00:06]} 81. Rc5 {[%clk 0:00:09]}  Ra1 {[%clk 0:00:05]} 82. Rc6+ {[%clk 0:00:09]}  Kf5 {[%clk 0:00:06]} 83. Rc5+ {[%clk 0:00:09]}  Kf6 {[%clk 0:00:06]} 84. Rc2 {[%clk 0:00:09]}  Kf5 {[%clk 0:00:06]} 85. Rc5+ {[%clk 0:00:08]}  Kf6 {[%clk 0:00:06]} 1/2-1/2


[Site "https://www.chess.com"]

[Event "Titled Tuesday Blitz February 15 Early 2022"]
[White "Dushyant Sharma"]
[Black "Korchmar, Vasiliy"]
[WhiteFideId "25065130"]
[BlackFideId "24131750"]
[WhiteElo "2012"]
[BlackElo "2370"]
[Result "1/2-1/2"]
[Round "07"]
[TimeControl "180+1"]
[Date "2022.02.15"]
[WhiteClock "0:00:07"]
[BlackClock "0:00:02"]

1. e4 {[%clk 0:03:00]}  c5 {[%clk 0:03:00]} 2. Nf3 {[%clk 0:03:00]}  d6 {[%clk 0:03:00]} 3. d4 {[%clk 0:03:01]}  cxd4 {[%clk 0:03:01]} 4. Nxd4 {[%clk 0:03:02]}  Nf6 {[%clk 0:03:02]} 5. Nc3 {[%clk 0:03:02]}  Nc6 {[%clk 0:03:02]} 6. f4 {[%clk 0:03:03]}  g6 {[%clk 0:02:57]} 7. Nf3 {[%clk 0:03:02]}  Bg7 {[%clk 0:02:47]} 8. Bd3 {[%clk 0:03:02]}  O-O {[%clk 0:02:47]} 9. O-O {[%clk 0:03:03]}  Bg4 {[%clk 0:02:44]} 10. Qe1 {[%clk 0:03:03]}  Nb4 {[%clk 0:02:34]} 11. Kh1 {[%clk 0:02:54]}  Rc8 {[%clk 0:02:30]} 12. a3 {[%clk 0:02:51]}  Nxd3 {[%clk 0:02:29]} 13. cxd3 {[%clk 0:02:52]}  Nd7 {[%clk 0:02:26]} 14. Bd2 {[%clk 0:02:49]}  Nc5 {[%clk 0:02:25]} 15. Qe2 {[%clk 0:02:19]}  Nb3 {[%clk 0:02:22]} 16. Rad1 {[%clk 0:02:16]}  Nd4 {[%clk 0:02:21]} 17. Qf2 {[%clk 0:02:17]}  Nxf3 {[%clk 0:01:54]} 18. gxf3 {[%clk 0:02:17]}  Bh3 {[%clk 0:01:54]} 19. Rg1 {[%clk 0:02:17]}  Bd7 {[%clk 0:01:34]} 20. Qxa7 {[%clk 0:02:10]}  b6 {[%clk 0:01:33]} 21. Be3 {[%clk 0:01:56]}  b5 {[%clk 0:01:11]} 22. Nd5 {[%clk 0:01:14]}  e6 {[%clk 0:00:53]} 23. Nb6 {[%clk 0:00:55]}  Rc7 {[%clk 0:00:53]} 24. Qa5 {[%clk 0:00:55]}  Bxb2 {[%clk 0:00:31]} 25. Nxd7 {[%clk 0:00:28]}  Qxd7 {[%clk 0:00:32]} 26. Rb1 {[%clk 0:00:27]}  Rc2 {[%clk 0:00:31]} 27. Rg2 {[%clk 0:00:28]}  Rxg2 {[%clk 0:00:16]} 28. Kxg2 {[%clk 0:00:29]}  Bf6 {[%clk 0:00:13]} 29. Qxb5 {[%clk 0:00:29]}  Qc7 {[%clk 0:00:13]} 30. Qc4 {[%clk 0:00:27]}  Qa5 {[%clk 0:00:12]} 31. Qb4 {[%clk 0:00:26]}  Qa6 {[%clk 0:00:10]} 32. Qb3 {[%clk 0:00:18]}  Rc8 {[%clk 0:00:09]} 33. Kg3 {[%clk 0:00:16]}  Rc3 {[%clk 0:00:09]} 34. Qb8+ {[%clk 0:00:15]}  Kg7 {[%clk 0:00:09]} 35. e5 {[%clk 0:00:12]}  dxe5 {[%clk 0:00:08]} 36. fxe5 {[%clk 0:00:13]}  Be7 {[%clk 0:00:06]} 37. Qb7 {[%clk 0:00:12]}  Qxa3 {[%clk 0:00:05]} 38. Ra1 {[%clk 0:00:05]}  Qxa1 {[%clk 0:00:04]} 39. Qxe7 {[%clk 0:00:05]}  Qe1+ {[%clk 0:00:02]} 40. Kg2 {[%clk 0:00:05]}  Qxe3 {[%clk 0:00:02]} 41. Qf6+ {[%clk 0:00:05]}  Kh6 {[%clk 0:00:02]} 42. Qh4+ {[%clk 0:00:05]}  Kg7 {[%clk 0:00:02]} 43. Qf6+ {[%clk 0:00:06]}  Kg8 {[%clk 0:00:02]} 44. Qd8+ {[%clk 0:00:06]}  Kg7 {[%clk 0:00:02]} 45. Qf6+ {[%clk 0:00:07]} 1/2-1/2


[Site "https://www.chess.com"]